bitfinex/quotes_SOLUSD_20251119
["timestamp","ask_amount","ask_price","bid_price","bid_amount"]
[1763570938964,20.70369068,133.5,133.46,1.86]
[1763570939457,9.78882769,133.5,133.46,1.86]
[1763570939869,9.78882769,133.48,133.47,1.86]
[1763570940041,9.78882769,133.5,133.47,1.86]
[1763570940236,9.78882769,133.5,133.47,10.91486299]
[1763570940438,9.78882769,133.5,133.46,10.91486299]
[1763570940638,9.78882769,133.5,133.38,10.91486299]
[1763570940639,9.78882769,133.49,133.45,1.86]
[1763570940868,9.78882769,133.45,133.32,18.12096]
[1763570941039,10.91486299,133.43,133.37,1.86]
[1763570941237,10.91486299,133.43,133.3,1.41018754]
[1763570941238,0.74833495,133.53,133.42,10.91486299]
[1763570941474,9.78882769,133.48,133.43,1.86]
[1763570941651,9.78882769,133.48,133.44,1.86]
[1763570941856,12.91486298,133.56,133.38,10.91486299]
[1763570941857,0.74833495,133.55,133.45,12.77486299]
[1763570942055,9.78882769,133.49,133.45,12.77486299]
[1763570942379,9.78882769,133.45,133.35,0.74990626]
[1763570942671,9.78882769,133.45,133.35,18.12096]
[1763570942874,10.91486299,133.47,133.42,10.91486299]
[1763570943037,20.70369068,133.44,133.32,10.44882769]
[1763570943237,9.78882769,133.44,133.32,0.66]
[1763570943465,0.74833495,133.47,133.39,10.91486299]
[1763570943640,9.78882769,133.45,133.4,1.86]
[1763570943967,9.78882769,133.45,133.33,18.12096]
[1763570944165,18.12096,133.46,133.38,10.91486299]
[1763570944368,18.12096,133.46,133.33,18.12096]
[1763570944369,10.91486299,133.42,133.33,18.12096]
[1763570944575,10.91486299,133.42,133.38,10.91486299]
[1763570944865,7.03327368,133.42,133.33,18.12096]
[1763570945167,9.78882769,133.41,133.32,0.66]
[1763570945376,0.74833495,133.45,133.33,1.86]
[1763570945688,16.82210137,133.44,133.39,7.03327368]
[1763570945885,0.74833495,133.46,133.4,8.89327368]
[1763570946181,9.78882769,133.43,133.41,1.86]
[1763570946348,0.74833495,133.44,133.32,18.12096]
[1763570946547,9.78882769,133.39,133.31,0.66]
[1763570946745,0.74833495,133.44,133.33,1.86]
[1763570946973,9.78882769,133.43,133.38,7.03327368]
[1763570947178,7.03327368,133.42,133.39,1.86]
[1763570947375,7.03327368,133.41,133.37,7.03327368]
[1763570947554,9.78882769,133.4,133.38,1.86]
[1763570947753,7.03327368,133.42,133.38,1.86]
[1763570948066,7.03327368,133.42,133.37,7.03327368]
[1763570948272,7.03327368,133.4,133.35,7.03327368]
[1763570948463,7.03327368,133.4,133.36,1.86]
[1763570948671,9.78882769,133.4,133.37,7.03327368]
[1763570948872,16.82210137,133.4,133.38,1.86]
[1763570949060,16.82210137,133.4,133.39,1.86]
[1763570949259,9.78882769,133.43,133.39,1.86]
[1763570949488,9.78882769,133.4,133.39,1.86]
[1763570949782,16.82210137,133.4,133.31,18.78096]
[1763570950079,9.78882769,133.43,133.38,7.03327368]
[1763570950277,9.78882769,133.43,133.39,8.89327368]
[1763570950278,0.74833495,133.43,133.39,8.89327368]
[1763570950505,18.71910265,133.56,133.41,7.03327368]
[1763570950506,9.78882769,133.44,133.41,7.03327368]
[1763570950671,0.74833495,133.5,133.43,7.03327368]
[1763570950872,7.03327368,133.51,133.46,7.03327368]
[1763570951059,0.74833495,133.57,133.5,7.03327368]
[1763570951256,0.74833495,133.57,133.44,7.69327368]
[1763570951493,7.03327368,133.51,133.47,7.03327368]
[1763570951666,0.74833495,133.5,133.48,1.86]
[1763570951864,7.03327368,133.5,133.46,7.03327368]
[1763570952077,17.57043632,133.49,133.41,18.12096]
[1763570952282,17.57043632,133.49,133.4,0.66]
[1763570952283,9.78882769,133.46,133.4,0.66]
[1763570952482,10.53716264,133.46,133.42,1.86]
[1763570952998,10.53716264,133.46,133.42,8.89327368]
[1763570953202,17.57043632,133.46,133.42,8.89327368]
[1763570953386,16.82210137,133.46,133.4,0.66]
[1763570953581,9.78882769,133.5,133.43,7.03327368]
[1763570953776,0.74833495,133.51,133.41,1.86]
[1763570953777,9.78882769,133.47,133.41,1.86]
[1763570953977,16.82210137,133.48,133.41,1.86]
[1763570954181,9.78882769,133.48,133.44,7.03327368]
[1763570954378,9.78882769,133.48,133.42,1.86]
[1763570954379,0.74833495,133.47,133.42,1.86]
[1763570954579,7.03327368,133.47,133.4,0.66]
[1763570954778,0.74833495,133.47,133.44,7.03327368]
[1763570955003,9.78882769,133.48,133.4,0.66]
[1763570955205,7.78160863,133.47,133.41,1.86]
[1763570955404,9.78882769,133.46,133.43,7.03327368]
[1763570955905,0.74833495,133.47,133.43,7.03327368]
[1763570956203,7.03327368,133.45,133.35,10.44882769]
[1763570956377,7.03327368,133.45,133.41,7.03327368]
[1763570956581,7.03327368,133.45,133.36,8.89327368]
[1763570956582,7.03327368,133.47,133.43,7.03327368]
[1763570956784,7.03327368,133.47,133.42,8.89327368]
[1763570957080,7.03327368,133.47,133.43,7.03327368]
[1763570957391,7.03327368,133.46,133.44,1.86]
[1763570957912,9.78882769,133.49,133.45,7.03327368]
[1763570957913,16.82210137,133.49,133.45,7.03327368]
[1763570958078,9.78882769,133.49,133.45,7.03327368]
[1763570958420,9.78882769,133.49,133.42,18.12096]
[1763570958421,7.03327368,133.47,133.43,7.03327368]
[1763570958708,7.03327368,133.44,133.37,0.66]
[1763570958884,0.74833495,133.43,133.38,1.86]
[1763570959089,7.03327368,133.43,133.38,1.86]
[1763570959316,7.03327368,133.42,133.38,2.52]
[1763570959528,9.78882769,133.43,133.38,7.69327368]
[1763570959692,9.78882769,133.43,133.39,1.86]
[1763570959892,7.03327368,133.43,133.39,8.89327368]
[1763570960091,9.78882769,133.46,133.41,7.03327368]
[1763570960308,7.78160863,133.45,133.39,20.69096]
[1763570960510,7.78160863,133.45,133.41,7.03327368]
[1763570960723,16.82210137,133.44,133.39,18.12096]
[1763570961017,18.12096,133.5,133.4,1.86]
[1763570961018,16.82210137,133.42,133.4,1.86]
[1763570961193,16.82210137,133.42,133.35,0.71]
[1763570961813,9.78882769,133.4,133.36,8.89327368]
[1763570962025,9.78882769,133.4,133.37,1.86]
[1763570962026,16.82210137,133.4,133.37,1.86]
[1763570962231,16.82210137,133.4,133.35,0.71]
[1763570962437,9.78882769,133.4,133.35,0.71]
[1763570962602,9.78882769,133.4,133.37,7.03327368]
[1763570962801,9.78882769,133.4,133.38,1.86]
[1763570962997,9.78882769,133.4,133.35,0.71]
[1763570963310,0.66,133.46,133.38,7.03327368]
[1763570963311,7.03327368,133.42,133.38,7.03327368]
[1763570963500,9.78882769,133.48,133.4,7.03327368]
[1763570963698,0.74833495,133.47,133.43,7.03327368]
[1763570963998,0.74833495,133.51,133.46,7.03327368]
[1763570964197,7.78160863,133.5,133.42,0.71]
[1763570964403,0.74833495,133.5,133.43,1.86]
[1763570964614,7.03327368,133.5,133.42,0.71]
[1763570964844,0.74833495,133.49,133.45,7.03327368]
[1763570965126,9.78882769,133.49,133.46,1.86]
[1763570965300,7.78160863,133.48,133.42,0.71]
[1763570965699,0.74833495,133.48,133.44,7.03327368]
[1763570965902,0.74833495,133.48,133.42,0.71]
[1763570966120,0.74833495,133.48,133.39,10.63946]
[1763570966322,9.78882769,133.47,133.39,10.63946]
[1763570966529,6.12381237,133.46,133.4,1.86]
[1763570966729,9.78882769,133.47,133.44,7.03327368]
[1763570966730,0.74833495,133.47,133.44,7.03327368]
[1763570966918,6.12418382,133.47,133.36,7.03327368]
[1763570967114,9.78882769,133.46,133.36,7.03327368]
[1763570967320,0.74833495,133.53,133.37,0.7497938]
[1763570967508,0.74833495,133.53,133.37,2.74979379]
[1763570967509,16.82210137,133.52,133.37,2.74979379]
[1763570967703,9.78882769,133.48,133.36,7.03327368]
[1763570967933,9.78882769,133.46,133.36,7.03327368]
[1763570968132,0.74833495,133.45,133.37,0.71]
[1763570968339,9.78882769,133.49,133.44,7.03327368]
[1763570968643,5.38125067,133.48,133.45,1.86]
[1763570968935,0.74833495,133.53,133.45,1.86]
[1763570968936,7.03327368,133.5,133.46,1.86]
[1763570969147,0.74833495,133.49,133.47,8.89327368]
[1763570969343,0.74833495,133.52,133.48,1.86]
[1763570969517,0.66,133.57,133.51,7.03327368]
[1763570969725,0.66,133.57,133.44,7.03327368]
[1763570969726,0.74833495,133.56,133.52,7.03327368]
[1763570969919,6.13183946,133.56,133.53,1.86]
[1763570970116,13.16511314,133.56,133.54,1.86]
[1763570970317,13.16511314,133.56,133.46,0.71]
[1763570970318,13.07677819,133.55,133.46,0.71]
[1763570970527,5.38350451,133.54,133.47,1.86]
[1763570970755,0.66,133.61,133.53,7.03327368]
[1763570970756,10.44882769,133.6,133.53,7.03327368]
[1763570971034,6.1337336,133.59,133.55,7.03327368]
[1763570971208,7.03327368,133.58,133.51,0.71]
[1763570971409,6.1337336,133.57,133.54,7.03327368]
[1763570971713,6.1337336,133.57,133.51,0.71]
[1763570971714,5.38539865,133.56,133.55,1.86]
[1763570972129,0.74833495,133.57,133.55,1.86]
[1763570972307,6.15122166,133.58,133.55,1.86]
[1763570972504,5.40288671,133.57,133.55,1.86]
[1763570972708,0.74833495,133.58,133.55,1.86]
[1763570972709,5.40288671,133.56,133.55,1.86]
[1763570973347,5.40288671,133.56,133.55,8.89327368]
[1763570973946,5.40288671,133.58,133.55,8.89327368]
[1763570974110,5.40288671,133.57,133.55,8.89327368]
[1763570974306,5.43333204,133.56,133.55,8.89327368]
[1763570974507,5.43333204,133.56,133.55,1.86]
[1763570974930,5.43333204,133.56,133.54,7.03327368]
[1763570975240,7.78160863,133.59,133.55,8.89327368]
[1763570975448,7.03327368,133.56,133.47,0.69]
[1763570975617,5.43273183,133.55,133.53,7.03327368]
[1763570975815,5.43273183,133.54,133.53,7.03327368]
[1763570976014,5.43273183,133.54,133.53,1.86]
[1763570977331,5.43273183,133.54,133.53,8.89327368]
[1763570977524,13.06870857,133.54,133.48,7.03327368]
[1763570977739,12.34870857,133.53,133.49,8.89327368]
[1763570977931,5.31543489,133.52,133.49,8.89327368]
[1763570978129,7.78160863,133.54,133.5,1.86]
[1763570978346,7.78160863,133.54,133.46,0.69]
[1763570978347,7.03327368,133.51,133.46,0.69]
[1763570978670,7.03327368,133.51,133.36,7.03327368]
[1763570978671,16.82210137,133.47,133.39,0.69]
[1763570978825,12.34580143,133.46,133.39,0.69]
[1763570979027,7.03327368,133.46,133.39,0.69]
[1763570979236,7.03327368,133.46,133.4,1.86]
[1763570979442,7.03327368,133.45,133.41,1.86]
[1763570979624,7.03327368,133.46,133.41,1.86]
[1763570979826,7.03327368,133.46,133.42,1.86]
[1763570980023,7.03327368,133.46,133.42,8.89327368]
[1763570980261,9.78882769,133.48,133.4,0.69]
[1763570980262,7.03327368,133.45,133.41,7.03327368]
[1763570980461,7.75327368,133.45,133.42,1.86]
[1763570980665,7.03327368,133.45,133.42,1.86]
[1763570981159,16.82210137,133.43,133.4,1.86]
[1763570981328,7.03327368,133.41,133.38,0.69]
[1763570981528,7.03327368,133.41,133.37,7.03327368]
[1763570981743,7.03327368,133.41,133.36,7.03327368]
[1763570982048,7.03327368,133.41,133.37,8.89327368]
[1763570982233,7.03327368,133.4,133.38,1.86]
[1763570982437,7.03327368,133.4,133.35,7.72327368]
[1763570982438,16.82210137,133.4,133.39,1.86]
[1763570982938,7.03327368,133.41,133.39,1.86]
[1763570983343,7.03327368,133.42,133.39,1.86]
[1763570983544,0.62,133.48,133.41,7.03327368]
[1763570983723,16.82210137,133.46,133.42,7.03327368]
[1763570983926,16.82210137,133.46,133.41,7.03327368]
[1763570984147,9.78882769,133.47,133.43,7.03327368]
[1763570984324,0.74833495,133.5,133.44,0.69]
[1763570984325,7.78160863,133.5,133.44,0.69]
[1763570984527,9.78882769,133.48,133.44,0.69]
[1763570984735,9.78882769,133.46,133.41,0.69]
[1763570984932,16.82210137,133.46,133.42,1.86]
[1763570985137,7.03327368,133.45,133.41,0.69]
[1763570985358,9.78882769,133.46,133.41,0.69]
[1763570985359,7.03327368,133.46,133.42,1.86]
[1763570985656,7.03327368,133.46,133.42,8.89327368]
[1763570985855,7.03327368,133.46,133.41,0.69]
[1763570986026,7.03327368,133.46,133.42,7.03327368]
[1763570986229,7.03327368,133.46,133.43,1.86]
[1763570986643,0.74833495,133.48,133.44,7.72327368]
[1763570986955,16.82210137,133.48,133.44,7.72327368]
[1763570987257,9.78882769,133.46,133.45,1.86]
[1763570987646,9.78882769,133.46,133.43,7.03327368]
[1763570987862,9.78882769,133.46,133.44,1.86]
[1763570988043,9.78882769,133.46,133.42,7.03327368]
[1763570988241,7.65327368,133.45,133.43,1.86]
[1763570988439,17.44210137,133.46,133.43,1.86]
[1763570988756,18.74096,133.49,133.43,8.89327368]
[1763570988960,17.57043632,133.48,133.36,14.53173802]
[1763570989147,16.82210137,133.46,133.42,7.03327368]
[1763570989339,9.78882769,133.44,133.39,0.69]
[1763570989857,0.74833495,133.45,133.4,1.86]
[1763570990065,0.74833495,133.45,133.42,7.03327368]
[1763570990381,10.53716264,133.47,133.43,8.89327368]
[1763570990534,0.74833495,133.48,133.46,7.03327368]
[1763570990845,0.74833495,133.51,133.47,7.03327368]
[1763570991170,7.78160863,133.51,133.47,7.03327368]
[1763570991344,8.40160863,133.51,133.48,1.86]
[1763570991548,8.40160863,133.51,133.45,0.66]
[1763570991743,8.40160863,133.51,133.49,1.86]
[1763570992270,22.76356052,133.5,133.39,18.12096]
[1763570992427,6.06983221,133.49,133.41,0.66]
[1763570992630,9.78882769,133.48,133.41,0.66]
[1763570992833,0.74833495,133.49,133.45,7.03327368]
[1763570993279,17.44210137,133.48,133.46,1.86]
[1763570993458,10.53716264,133.47,133.44,7.03327368]
[1763570993650,10.53716264,133.47,133.45,1.86]
[1763570994050,0.74833495,133.47,133.45,9.55327368]
[1763570994270,0.74833495,133.47,133.45,1.86]
[1763570994969,0.74833495,133.47,133.46,1.86]
[1763570995155,7.03327368,133.49,133.46,1.86]
[1763570995334,0.74833495,133.48,133.46,1.86]
[1763570995742,0.62,133.47,133.4,0.66]
[1763570995963,0.74833495,133.48,133.45,7.03327368]
[1763570996164,0.74833495,133.48,133.44,7.03327368]
[1763570996562,7.78160863,133.48,133.43,7.03327368]
[1763570996868,7.78160863,133.48,133.4,0.66]
[1763570996869,16.82210137,133.47,133.4,0.66]
[1763570997035,0.74833495,133.46,133.44,1.86]
[1763570997238,9.78882769,133.45,133.4,0.66]
[1763570997445,9.78882769,133.45,133.41,8.89327368]
[1763570997651,0.74833495,133.44,133.42,8.89327368]
[1763570997837,0.74833495,133.44,133.4,0.66]
[1763570997838,10.53716264,133.45,133.4,0.66]
[1763570998039,7.65327368,133.44,133.4,7.03327368]
[1763570998271,0.74833495,133.43,133.41,1.86]
[1763570998440,0.74833495,133.43,133.41,8.89327368]
[1763570998760,0.74833495,133.44,133.41,8.89327368]
[1763571000050,9.78882769,133.43,133.38,0.66]
[1763571000234,16.82210137,133.43,133.38,7.69327368]
[1763571000438,9.78882769,133.43,133.39,1.84]
[1763571000640,0.74833495,133.45,133.41,7.03327368]
[1763571000844,9.78882769,133.44,133.41,7.03327368]
[1763571001077,0.74833495,133.43,133.42,1.84]
[1763571001640,0.74833495,133.43,133.4,0.66]
[1763571001839,0.74833495,133.43,133.41,1.84]
[1763571002081,0.62,133.45,133.42,7.03327368]
[1763571002082,0.74833495,133.45,133.42,7.03327368]
[1763571002284,0.74833495,133.45,133.41,7.03327368]
[1763571002488,0.74833495,133.45,133.36,0.66]
[1763571002489,7.03327368,133.42,133.36,0.66]
[1763571002656,16.82210137,133.42,133.37,8.87327368]
[1763571002858,16.82210137,133.42,133.35,7.03327368]
[1763571002859,7.03327368,133.39,133.35,7.03327368]
[1763571003164,7.03327368,133.39,133.34,0.66]
[1763571003351,7.03327368,133.38,133.35,1.84]
[1763571003683,7.03327368,133.38,133.36,1.84]
[1763571003857,10.40882769,133.42,133.37,7.69327368]
[1763571004052,9.78882769,133.42,133.38,7.03327368]
[1763571004368,0.74833495,133.43,133.41,7.03327368]
[1763571004674,9.78882769,133.46,133.41,1.84]
[1763571004675,16.82210137,133.44,133.41,1.84]
[1763571004882,0.74833495,133.43,133.39,0.66]
[1763571005090,0.74833495,133.43,133.36,0.66]
[1763571005091,9.78882769,133.42,133.36,0.66]
[1763571005292,9.78882769,133.4,133.32,0.66]
[1763571005448,20.80670801,133.4,133.37,1.84]
[1763571005772,9.78882769,133.4,133.38,1.84]
[1763571006481,11.76621527,133.41,133.38,1.84]
[1763571006683,11.63788032,133.4,133.35,0.66]
[1763571006883,20.80670801,133.39,133.36,1.84]
[1763571007091,10.40882769,133.39,133.31,0.66]
[1763571007300,9.78882769,133.31,133.25,0.76]
[1763571007587,11.01788032,133.29,133.25,0.76]
[1763571007795,11.01788032,133.29,133.26,1.84]
[1763571008000,9.78882769,133.31,133.26,1.84]
[1763571008166,11.01788032,133.3,133.26,12.85788032]
[1763571008556,21.42670801,133.31,133.26,12.85788032]
[1763571008770,6.91884203,133.39,133.28,11.01788032]
[1763571008968,9.78882769,133.33,133.29,11.01788032]
[1763571009179,0.62,133.37,133.27,0.66]
[1763571009385,0.62,133.37,133.28,1.84]
[1763571009588,18.12096,133.35,133.31,11.01788032]
[1763571009794,20.80670801,133.34,133.29,11.01788032]
[1763571010002,20.80670801,133.31,133.3,1.86]
[1763571010162,9.78882769,133.31,133.26,11.67788032]
[1763571010499,9.78882769,133.32,133.29,1.86]
[1763571010704,18.12096,133.35,133.29,1.86]
[1763571010863,18.12096,133.35,133.27,0.66]
[1763571010864,11.01788032,133.34,133.3,1.86]
[1763571011197,9.78882769,133.35,133.31,1.86]
[1763571011397,9.78882769,133.35,133.32,1.86]
[1763571011398,21.42670801,133.35,133.32,1.86]
[1763571011587,21.42670801,133.35,133.3,11.01788032]
[1763571011588,20.80670801,133.35,133.3,11.01788032]
[1763571011788,9.78882769,133.3,133.25,11.77788032]
[1763571011987,20.80670801,133.3,133.26,1.86]
[1763571012217,9.78882769,133.35,133.28,11.01788032]
[1763571012516,9.78882769,133.35,133.25,0.1]
[1763571012517,9.78882769,133.35,133.31,11.01788032]
[1763571012886,9.78882769,133.33,133.3,11.01788032]
[1763571013077,9.78882769,133.33,133.32,1.86]
[1763571013488,20.80670801,133.34,133.29,11.67788032]
[1763571013674,20.80670801,133.34,133.32,1.86]
[1763571014187,20.80670801,133.34,133.3,11.01788032]
[1763571014376,21.42670801,133.34,133.3,12.87788032]
[1763571014795,11.63788032,133.33,133.31,1.86]
[1763571015016,11.01788032,133.33,133.31,1.86]
[1763571015317,10.53716264,133.34,133.31,1.86]
[1763571015495,9.78882769,133.32,133.31,1.86]
[1763571015811,20.80670801,133.32,133.29,1.86]
[1763571016315,9.78882769,133.33,133.3,11.01788032]
[1763571016496,0.74833495,133.32,133.3,11.01788032]
[1763571016703,0.74833495,133.32,133.31,1.86]
[1763571017714,0.74833495,133.32,133.29,11.01788032]
[1763571017898,1.36833495,133.32,133.3,1.84]
[1763571018100,0.74833495,133.32,133.3,1.84]
[1763571018490,0.74833495,133.32,133.28,11.01788032]
[1763571018788,0.74833495,133.32,133.27,0.66]
[1763571018789,20.80670801,133.31,133.26,11.01788032]
[1763571018989,20.80670801,133.31,133.27,1.84]
[1763571019189,9.78882769,133.31,133.27,12.85788032]
[1763571019388,9.78882769,133.31,133.27,11.01788032]
[1763571019617,0.74833495,133.3,133.28,12.85788032]
[1763571020334,0.74833495,133.3,133.28,1.84]
[1763571020504,0.74833495,133.32,133.29,11.72788032]
[1763571020692,0.74833495,133.32,133.3,11.01788032]
[1763571021025,9.78882769,133.33,133.3,11.01788032]
[1763571021224,0.74833495,133.32,133.28,2.55]
[1763571021538,0.74833495,133.32,133.29,2.55]
[1763571021712,9.78882769,133.31,133.25,0.81]
[1763571021913,0.62,133.34,133.3,11.01788032]
[1763571022132,21.55504296,133.33,133.25,0.81]
[1763571022315,9.78882769,133.31,133.25,0.81]
[1763571022638,0.74833495,133.3,133.26,1.84]
[1763571022806,9.78882769,133.31,133.28,11.01788032]
[1763571023011,0.74833495,133.31,133.29,11.01788032]
[1763571023209,0.74833495,133.32,133.3,11.01788032]
[1763571023420,0.74833495,133.34,133.31,12.85788032]
[1763571023728,0.74833495,133.34,133.25,7.60468723]
[1763571023729,0.74833495,133.33,133.32,1.84]
[1763571023931,6.09925994,133.34,133.32,1.84]
[1763571024117,0.74833495,133.34,133.32,12.85788032]
[1763571024431,9.78882769,133.37,133.33,11.01788032]
[1763571024634,9.78882769,133.35,133.34,1.84]
[1763571024937,26.15691044,133.35,133.34,1.84]
[1763571025233,9.78882769,133.35,133.34,1.84]
[1763571025403,15.13902029,133.35,133.34,1.84]
[1763571025604,9.78882769,133.35,133.34,1.84]
[1763571025809,15.13809289,133.35,133.32,11.01788032]
[1763571026011,0.74833495,133.34,133.33,1.84]
[1763571026426,22.17504296,133.34,133.33,1.84]
[1763571026627,11.15716264,133.34,133.33,1.84]
[1763571026831,21.55504296,133.34,133.33,1.84]
[1763571027034,26.90288726,133.34,133.33,1.84]
[1763571027247,26.90288726,133.34,133.29,11.01788032]
[1763571027466,5.3478443,133.33,133.32,1.84]
[1763571027961,0.74833495,133.34,133.32,12.85788032]
[1763571028144,26.90220958,133.36,133.32,1.84]
[1763571028345,9.78882769,133.34,133.32,1.84]
[1763571028648,0.74833495,133.33,133.32,1.84]
[1763571028991,0.74833495,133.34,133.31,11.01788032]
[1763571029258,11.01788032,133.32,133.28,11.01788032]
[1763571029434,9.78882769,133.33,133.28,11.01788032]
[1763571029635,17.11086067,133.32,133.28,11.01788032]
[1763571029871,0.74833495,133.32,133.29,11.01788032]
[1763571030155,6.09225802,133.33,133.29,11.01788032]
[1763571030329,0.74833495,133.33,133.3,11.01788032]
[1763571030529,0.74833495,133.33,133.31,1.86]
[1763571030934,9.78882769,133.38,133.32,11.69788032]
[1763571031276,1.99999999,133.47,133.32,11.69788032]
[1763571031277,0.62,133.44,133.37,11.01788032]
[1763571031556,6.09782557,133.45,133.38,1.86]
[1763571031744,6.09782557,133.45,133.42,11.01788032]
[1763571032064,6.09782557,133.45,133.43,1.86]
[1763571032232,0.74833495,133.45,133.43,1.86]
[1763571032647,0.62,133.48,133.43,12.87788032]
[1763571032955,29.88717527,133.47,133.44,1.86]
[1763571033153,5.35107619,133.46,133.45,1.86]
[1763571033534,5.35314838,133.46,133.45,1.86]
[1763571033734,29.88717527,133.47,133.45,1.86]
[1763571034046,11.76621527,133.47,133.45,1.86]
[1763571034247,11.01788032,133.46,133.45,1.86]
[1763571034432,16.37056611,133.46,133.45,1.86]
[1763571034633,0.74833495,133.47,133.45,1.86]
[1763571034850,9.78882769,133.45,133.44,1.84]
[1763571035134,0.74833495,133.45,133.44,1.84]
[1763571035458,11.01788032,133.47,133.44,1.84]
[1763571035849,0.74833495,133.51,133.46,11.01788032]
[1763571036058,11.76621527,133.51,133.47,1.84]
[1763571036358,0.62,133.54,133.49,11.01788032]
[1763571036671,11.01788032,133.51,133.47,11.69788032]
[1763571036880,11.01788032,133.52,133.5,1.84]
[1763571037188,0.74833495,133.53,133.5,1.84]
[1763571037349,0.74833495,133.54,133.51,0.68]
[1763571037547,0.2,133.56,133.51,0.68]
[1763571037745,0.2,133.56,133.52,11.01788032]
[1763571038083,0.2,133.56,133.51,0.68]
[1763571038283,0.2,133.56,133.54,11.01788032]
[1763571038569,0.2,133.56,133.55,1.84]
[1763571038767,0.2,133.56,133.52,11.69788032]
[1763571039065,0.2,133.56,133.53,2.52]
[1763571039789,0.2,133.56,133.51,11.01788032]
[1763571040097,5.52597013,133.56,133.52,1.84]
[1763571040377,11.01788032,133.55,133.52,2.52]
[1763571040546,0.2,133.56,133.52,2.52]
[1763571040746,11.01788032,133.53,133.48,0.68]
[1763571040982,11.01788032,133.53,133.49,1.84]
[1763571041157,0.74833495,133.55,133.5,1.84]
[1763571041350,11.01788032,133.53,133.5,2.52]
[1763571041544,0.74833495,133.55,133.51,0.68]
[1763571041749,11.01788032,133.53,133.51,0.68]
[1763571042145,11.01788032,133.54,133.51,0.68]
[1763571042348,11.01788032,133.53,133.5,1.84]
[1763571042566,11.01788032,133.53,133.51,1.84]
[1763571042750,1.56833495,133.56,133.51,1.84]
[1763571042950,0.2,133.56,133.52,0.68]
[1763571043162,0.2,133.56,133.44,11.01788032]
[1763571043163,11.01788032,133.53,133.44,11.01788032]
[1763571043365,11.01788032,133.48,133.45,2.52]
[1763571043566,11.01788032,133.49,133.46,0.68]
[1763571043773,0.74833495,133.52,133.46,0.68]
[1763571043950,0.74833495,133.52,133.47,1.84]
[1763571044144,11.01788032,133.49,133.47,1.84]
[1763571044377,11.01788032,133.49,133.47,2.52]
[1763571044580,11.01788032,133.51,133.48,0.68]
[1763571044881,11.01788032,133.51,133.49,1.84]
[1763571045372,11.01788032,133.51,133.5,1.84]
[1763571047079,0.74833495,133.54,133.5,2.52]
[1763571047281,11.01788032,133.52,133.5,2.52]
[1763571047582,11.01788032,133.53,133.5,2.52]
[1763571047800,11.01788032,133.52,133.5,2.52]
[1763571048259,0.74833495,133.54,133.5,2.52]
[1763571048459,11.01788032,133.53,133.5,2.52]
[1763571048672,0.2,133.56,133.51,0.68]
[1763571048873,11.01788032,133.53,133.51,0.68]
[1763571049174,11.01788032,133.53,133.48,11.01788032]
[1763571049474,0.82,133.56,133.42,58.34331238]
[1763571049475,11.01788032,133.52,133.49,0.68]
[1763571049678,11.01788032,133.52,133.5,1.84]
[1763571050455,11.01788032,133.51,133.47,0.66]
[1763571050766,0.62,133.54,133.48,2.5]
[1763571050971,0.62,133.54,133.48,13.51788032]
[1763571051172,11.01788032,133.52,133.48,2.5]
[1763571051379,11.01788032,133.52,133.49,0.66]
[1763571051692,18.32096,133.56,133.49,11.67788032]
[1763571051858,11.01788032,133.53,133.49,0.66]
[1763571052056,11.01788032,133.53,133.5,0.66]
[1763571052495,11.01788032,133.53,133.42,67.29274047]
[1763571052496,11.01788032,133.53,133.42,43.05983408]
[1763571052676,10.53716264,133.55,133.48,11.01788032]
[1763571052894,10.53716264,133.55,133.47,11.01788032]
[1763571052895,11.01788032,133.52,133.47,11.01788032]
[1763571053096,11.01788032,133.52,133.48,2.5]
[1763571053411,11.01788032,133.52,133.49,0.66]
[1763571053594,11.01788032,133.53,133.49,0.66]
[1763571053797,11.15716264,133.55,133.49,0.66]
[1763571053996,11.01788032,133.52,133.49,0.66]
[1763571054803,11.01788032,133.52,133.5,1.84]
[1763571055098,11.01788032,133.52,133.51,1.84]
[1763571055408,0.74833495,133.55,133.51,1.84]
[1763571055605,0.74833495,133.55,133.51,0.66]